bitfinex-derivatives/quotes_SOLF0:USTF0_20250803
["timestamp","ask_amount","ask_price","bid_price","bid_amount"]
[1754218588127,116.48,161.63,161.62,3.35]
[1754218590825,113.2,161.63,161.6,5.19904422]
[1754218591023,3.28,161.62,161.61,3.35]
[1754218594328,113.2,161.63,161.61,3.35]
[1754218595334,116.49,161.63,161.61,3.35]
[1754218602937,116.49,161.63,161.61,9.5377]
[1754218603126,116.49,161.63,161.61,14.73674422]
[1754218603334,113.2,161.63,161.62,3.19]
[1754218603531,113.2,161.63,161.62,8.38904422]
[1754218604034,116.25,161.65,161.63,3.19]
[1754218608647,3.29,161.64,161.63,3.19]
[1754218614653,9.4767,161.64,161.63,3.19]
[1754218619052,3.29,161.64,161.63,3.19]
[1754218629261,6.1868,161.64,161.62,3.26]
[1754218629461,116.21,161.63,161.62,3.26]
[1754218633769,112.72,161.63,161.61,8.45904422]
[1754218633962,3.49,161.62,161.61,3.26]
[1754218636368,122.3973,161.63,161.61,3.26]
[1754218643473,116.21,161.63,161.61,3.26]
[1754218644065,116.21,161.63,161.61,8.45904422]
[1754218644273,116.21,161.63,161.62,3.26]
[1754218644774,112.72,161.63,161.62,3.26]
[1754218644971,112.72,161.64,161.62,3.26]
[1754218646877,112.72,161.64,161.62,9.4474]
[1754218647280,112.72,161.64,161.63,3.26]
[1754218647477,112.72,161.64,161.63,9.4471]
[1754218648881,116.21,161.66,161.63,6.1871]
[1754218649085,116.21,161.66,161.64,3.26]
[1754218650978,3.49,161.65,161.64,3.26]
[1754218651782,112.72,161.66,161.64,3.26]
[1754218651972,112.72,161.66,161.64,9.4466]
[1754218652176,112.72,161.66,161.65,3.28]
[1754218652578,115.98,161.66,161.65,3.28]
[1754218655084,112.72,161.66,161.65,3.28]
[1754218655987,115.98,161.66,161.65,3.28]
[1754218658285,112.72,161.66,161.65,3.28]
[1754218658796,112.7,161.67,161.65,3.28]
[1754218661387,112.7,161.67,161.65,9.4662]
[1754218661586,112.7,161.67,161.65,6.1862]
[1754218661785,112.7,161.67,161.66,3.28]
[1754218662094,278.96754236,161.68,161.66,3.28]
[1754218666400,3.26,161.67,161.66,3.28]
[1754218669500,275.70754236,161.68,161.66,3.28]
[1754218670008,278.96754236,161.68,161.66,3.28]
[1754218671304,278.96754236,161.68,161.66,6.1859]
[1754218671603,163.00754236,161.68,161.67,3.28]
[1754218673207,163.00754236,161.68,161.67,9.4656]
[1754218673805,112.68,161.69,161.67,9.4656]
[1754218674010,112.68,161.69,161.68,3.28]
[1754218676316,3.26,161.69,161.68,1.613333]
[1754218679618,112.68,161.7,161.68,6.1851]
[1754218679814,115.94,161.7,161.69,3.28]
[1754218682223,3.25,161.69,161.68,3.49]
[1754218682624,3.25,161.69,161.68,9.6752]
[1754218686532,112.68,161.7,161.68,9.6752]
[1754218686729,115.93,161.7,161.68,9.6752]
[1754218687030,112.68,161.7,161.69,3.49]
[1754218687628,115.93,161.7,161.69,3.49]
[1754218691932,3.25,161.69,161.67,9.6754]
[1754218692236,3.25,161.69,161.68,3.49]
[1754218692431,3.25,161.69,161.67,3.49]
[1754218692734,3.25,161.67,161.66,3.49]
[1754218694140,3.25,161.67,161.66,9.6759]
[1754218698339,112.64,161.68,161.66,9.6759]
[1754218698536,112.64,161.68,161.67,3.49]
[1754218698743,115.89,161.68,161.67,3.49]
[1754218699340,115.89,161.68,161.67,9.6756]
[1754218715153,115.89,161.68,161.67,14.86134166]
[1754218716054,115.89,161.68,161.67,14.88133076]
[1754218720163,115.89,161.68,161.67,8.69573076]
[1754218721761,115.89,161.68,161.67,14.88133076]
[1754218724854,3.25,161.68,161.67,14.88133076]
[1754218725462,115.83,161.7,161.68,3.46]
[1754218726260,115.83,161.7,161.69,9.6448]
[1754218728156,115.83,161.7,161.69,3.46]
[1754218745183,115.83,161.7,161.69,9.6448]
[1754218747169,138.76633247,161.72,161.7,3.24]
[1754218747364,251.32633247,161.72,161.7,3.24]
[1754218747766,138.76633247,161.72,161.7,8.44573076]
[1754218747978,138.76633247,161.72,161.71,9.424]
[1754218750471,3.21,161.72,161.71,9.424]
[1754218752682,115.77,161.73,161.72,6.1837]
[1754218752874,115.77,161.73,161.72,9.4237]
[1754218756180,115.77,161.73,161.72,3.24]
[1754218762776,115.77,161.73,161.7,6.1843]
[1754218763081,3.21,161.72,161.71,3.24]
[1754218765974,3.21,161.72,161.69,3.24]
[1754218766174,112.52,161.71,161.69,3.24]
[1754218766481,3.21,161.7,161.69,3.24]
[1754218767175,112.52,161.72,161.68,146.12751018]
[1754218767382,3.21,161.71,161.68,140.92177942]
[1754218767580,3.21,161.71,161.68,137.68177942]
[1754218767873,191.53011607,161.76,161.69,3.24]
[1754218767874,115.73,161.7,161.69,3.24]
[1754218773183,112.52,161.71,161.7,3.31]
[1754218773981,115.77,161.71,161.7,3.31]
[1754218784180,121.954,161.71,161.7,3.31]
[1754218784487,115.77,161.71,161.7,3.31]
[1754218786789,121.954,161.71,161.7,3.31]
[1754218788492,3.25,161.7,161.66,3.31]
[1754218788793,3.25,161.68,161.66,3.31]
[1754218790090,115.75,161.69,161.66,3.31]
[1754218790588,3.25,161.68,161.66,3.31]
[1754218792991,3.25,161.68,161.64,11.38396539]
[1754218793185,3.25,161.68,161.65,3.31]
[1754218795493,3.25,161.67,161.65,3.31]
[1754218796193,3.25,161.66,161.65,3.31]
[1754218797492,3.25,161.65,161.62,5.19756539]
[1754218797696,3.25,161.65,161.63,3.31]
[1754218798089,3.25,161.64,161.63,3.31]
[1754218798396,3.25,161.65,161.63,3.31]
[1754218800996,3.25,161.68,161.63,6.187]
[1754218801197,3.25,161.67,161.64,3.31]
[1754218801997,3.36,161.69,161.64,3.31]
[1754218802198,3.36,161.68,161.64,3.31]
[1754218802691,3.36,161.68,161.64,6.1865]
[1754218802896,3.36,161.68,161.65,3.2]
[1754218806902,3.36,161.69,161.63,8.39376268]
[1754218807096,3.36,161.69,161.64,3.2]
[1754218807496,3.36,161.69,161.65,3.2]
[1754218808098,3.36,161.67,161.66,3.2]
[1754218812497,3.36,161.68,161.63,5.19376268]
[1754218812699,3.36,161.68,161.64,3.2]
[1754218817102,3.36,161.68,161.65,3.2]
[1754218819100,112.5,161.69,161.66,3.2]
[1754218819304,115.86,161.69,161.66,3.2]
[1754218819503,3.36,161.68,161.66,3.2]
[1754218819709,3.36,161.67,161.66,3.2]
[1754218820505,112.5,161.69,161.66,3.2]
[1754218820709,112.5,161.69,161.66,8.39376268]
[1754218820898,415.72,161.77,161.67,3.2]
[1754218821105,115.86,161.76,161.68,3.2]
[1754218821409,3.36,161.75,161.68,3.2]
[1754218824309,3.36,161.75,161.68,8.39376268]
[1754218824513,3.36,161.75,161.69,3.2]
[1754218837520,3.36,161.75,161.7,3.26]
[1754218843117,3.21,161.73,161.7,3.26]
[1754218847326,112.46,161.74,161.7,3.26]
[1754218847526,3.21,161.72,161.7,3.26]
[1754218848226,112.46,161.74,161.7,3.26]
[1754218848426,3.21,161.73,161.7,3.26]
[1754218850129,3.21,161.72,161.7,3.26]
[1754218859239,3.21,161.73,161.7,3.26]
[1754218860138,3.21,161.73,161.7,8.43855526]
[1754218860441,3.21,161.73,161.71,3.26]
[1754218863941,3.21,161.73,161.71,8.43855526]
[1754218864138,3.21,161.73,161.72,3.21]
[1754218867650,3.38,161.73,161.72,3.21]
[1754218867947,112.46,161.74,161.72,3.21]
[1754218868348,112.46,161.74,161.72,8.38855526]
[1754218868547,112.46,161.74,161.72,5.17855526]
[1754218868744,112.46,161.74,161.73,3.21]
[1754218868946,3.38,161.75,161.73,3.21]
[1754218869147,316.47676532,161.76,161.73,3.21]
[1754218869543,112.44,161.76,161.74,5.17855526]
[1754218869743,116.06619,161.78,161.75,3.21]
[1754218869945,3.38,161.77,161.76,3.21]
[1754218870146,3.38,161.77,161.75,8.38855526]
[1754218870851,3.38,161.77,161.76,3.21]
[1754218871045,3.38,161.77,161.75,5.17855526]
[1754218871250,3.38,161.77,161.75,3.21]
[1754218872440,3.38,161.77,161.72,5.17855526]
[1754218872645,3.38,161.77,161.76,3.21]
[1754218894066,115.84,161.78,161.76,3.21]
[1754218896461,3.4,161.77,161.76,3.21]
[1754218909973,3.4,161.77,161.76,3.32]
[1754218919488,112.44,161.78,161.76,3.32]
[1754218919980,112.44,161.78,161.76,8.50327891]
[1754218920181,112.44,161.78,161.77,3.32]
[1754218920685,762.39416139,161.86,161.77,3.32]
[1754218920686,3.4,161.81,161.77,3.32]
[1754218920886,3.4,161.82,161.78,8.50327891]
[1754218921082,3.4,161.82,161.79,3.32]
[1754218927690,3.51,161.81,161.79,3.32]
[1754218931291,3.51,161.8,161.78,3.25]
[1754218932995,3.51,161.81,161.78,3.25]
[1754218933796,112.38,161.83,161.78,3.25]
[1754218934001,758.9691765,161.86,161.8,3.25]
[1754218934291,758.9691765,161.86,161.79,5.18327891]
[1754218934292,112.34,161.85,161.81,8.43327891]
[1754218934497,112.34,161.85,161.82,3.25]
[1754218934993,339.9991765,161.86,161.82,3.25]
[1754218934994,0.26677,161.86,161.82,3.25]
[1754218935496,3.77677,161.86,161.82,3.25]
[1754218935991,3.51,161.85,161.82,3.25]
[1754218939996,3.51,161.84,161.82,3.25]
[1754218941398,0.26677,161.86,161.83,3.25]
[1754218941600,3.51,161.85,161.83,3.25]
[1754218945799,3.51,161.85,161.84,3.25]
[1754218947702,3.51,161.93,161.84,3.25]
[1754218948002,3.51,161.91,161.84,3.25]
[1754218948601,112.3,161.9,161.84,3.25]
[1754218948804,3.51,161.89,161.84,3.25]
[1754218959517,3.51,161.89,161.82,3.48]
[1754218976432,3.51,161.89,161.81,3.48]
[1754218985433,6.93498489,161.89,161.81,3.48]
[1754218985634,3.5,161.88,161.81,3.48]
[1754218986136,3.5,161.87,161.81,3.48]
[1754218986336,3.5,161.86,161.81,3.48]
[1754218986537,112.28,161.85,161.81,3.48]
[1754218986836,3.5,161.84,161.81,3.48]
[1754218990441,3.5,161.84,161.76,3.3]
[1754219010251,112.28,161.83,161.76,3.3]
[1754219010456,3.5,161.82,161.76,3.3]
[1754219010658,115.78,161.81,161.76,3.3]
[1754219012059,112.28,161.81,161.76,3.3]
[1754219012258,3.5,161.86,161.76,3.3]
[1754219012454,115.78,161.85,161.76,3.3]
[1754219012855,115.78,161.85,161.76,5.18309281]
[1754219013047,3.5,161.84,161.77,3.47]
[1754219014458,3.5,161.84,161.77,5.18309281]
[1754219014658,3.5,161.84,161.78,3.47]
[1754219018856,112.28,161.85,161.78,8.64758782]
[1754219018857,115.78,161.85,161.78,8.64758782]
[1754219019060,115.76,161.85,161.8,3.47]
[1754219020167,112.26,161.85,161.8,3.47]
[1754219020371,3.5,161.84,161.8,3.47]
[1754219020667,112.26,161.85,161.8,3.47]
[1754219021260,115.76,161.85,161.8,3.47]
[1754219021667,115.76,161.85,161.81,3.47]
[1754219022968,112.26,161.85,161.81,3.47]
[1754219023167,3.5,161.84,161.81,3.47]
[1754219023669,115.76,161.85,161.81,3.47]
[1754219024668,112.26,161.85,161.81,3.47]
[1754219026272,115.76,161.85,161.81,3.47]
[1754219027569,112.26,161.85,161.81,3.47]
[1754219028371,115.76,161.85,161.81,3.47]
[1754219030274,112.26,161.85,161.81,3.47]
[1754219031568,115.76,161.85,161.81,3.47]
[1754219032775,112.26,161.85,161.81,3.47]
[1754219032967,3.5,161.84,161.81,3.47]
[1754219036072,3.5,161.84,161.82,3.47]
[1754219037870,3.5,161.84,161.81,3.47]
[1754219038375,3.5,161.84,161.79,5.17758782]
[1754219038577,3.5,161.84,161.82,3.47]
[1754219039677,3.5,161.84,161.83,3.47]
[1754219050687,3.5,161.84,161.81,3.45]
[1754219050885,3.18,161.82,161.8,3.45]
[1754219051089,3.18,161.8,161.78,3.45]
[1754219051288,115.38,161.79,161.78,3.45]
[1754219051885,112.2,161.79,161.78,3.45]
[1754219053788,115.38,161.79,161.78,3.45]
[1754219053986,112.22,161.82,161.78,3.45]
[1754219054491,112.22,161.82,161.79,3.45]
[1754219054692,112.22,161.82,161.79,5.17758782]
[1754219054894,112.22,161.82,161.8,3.45]
[1754219058289,115.4,161.82,161.8,3.45]
[1754219060999,115.4,161.82,161.81,3.45]
[1754219066500,3.18,161.82,161.81,3.45]
[1754219068401,3.18,161.82,161.81,8.63061446]
[1754219070501,3.18,161.82,161.81,8.63209135]
[1754219071600,3.18,161.82,161.81,3.45]
[1754219075305,3.18,161.82,161.81,8.63209135]
[1754219076696,112.2,161.83,161.81,5.18209135]
[1754219076901,115.61,161.83,161.82,3.3]
[1754219081406,171.83702564,161.87,161.81,5.18209135]
[1754219081608,3.41,161.86,161.82,5.18209135]
[1754219081805,3.41,161.86,161.83,3.3]
[1754219082110,3.41,161.86,161.82,110.7693587]
[1754219082907,3.41,161.86,161.81,3.3]
[1754219095020,3.41,161.86,161.81,8.48209135]
[1754219095223,3.41,161.86,161.82,3.3]
[1754219100523,3.41,161.84,161.82,3.3]
[1754219100821,112.18,161.85,161.82,3.3]
[1754219101022,3.41,161.86,161.83,3.3]
[1754219101220,269.6834013,161.87,161.83,8.48209135]
[1754219101612,269.6834013,161.87,161.84,3.3]
[1754219102526,3.17,161.86,161.84,3.3]
[1754219105629,3.17,161.85,161.82,5.18209135]
[1754219105831,3.17,161.85,161.83,3.2]
[1754219106531,3.17,161.85,161.82,5.18209135]
[1754219106731,3.17,161.85,161.84,3.2]
[1754219117150,266.2734013,161.87,161.84,3.2]
[1754219117550,269.4434013,161.87,161.84,3.2]
[1754219117744,266.2734013,161.87,161.84,3.2]
[1754219117949,3.17,161.86,161.84,3.2]
[1754219118453,112.16,161.85,161.84,3.2]
[1754219118851,3.17,161.86,161.84,3.2]
[1754219119051,112.16,161.85,161.84,3.2]
[1754219119652,154.0934013,161.87,161.84,3.2]
[1754219119858,112.16,161.85,161.84,3.2]
[1754219126049,154.0934013,161.87,161.84,3.2]
[1754219126255,112.16,161.85,161.84,3.2]
[1754219128651,3.17,161.88,161.84,3.2]
[1754219128860,112.16,161.87,161.84,3.2]
[1754219129460,115.33,161.87,161.84,8.38119908]
[1754219129660,112.16,161.87,161.85,3.2]
[1754219130655,115.33,161.87,161.85,3.2]
[1754219131560,3.17,161.86,161.85,3.2]
[1754219132959,112.16,161.87,161.83,5.18119908]
[1754219133161,3.5,161.85,161.84,3.4]
[1754219133664,3.5,161.86,161.83,8.58119908]
[1754219133964,3.5,161.86,161.84,3.4]
[1754219135861,3.5,161.86,161.85,3.4]
[1754219137464,3.5,161.86,161.83,5.18119908]
[1754219137666,3.5,161.86,161.84,3.4]
[1754219138267,3.5,161.86,161.85,3.4]
[1754219145870,112.16,161.87,161.85,3.4]
[1754219146265,115.66,161.87,161.85,3.4]
[1754219147069,115.66,161.87,161.86,3.4]
[1754219150875,3.5,161.91,161.86,3.4]
[1754219151073,3.5,161.9,161.88,3.4]
[1754219151269,3.5,161.9,161.87,3.4]
[1754219153481,3.5,161.9,161.86,8.58119908]
[1754219153671,3.5,161.9,161.86,3.4]
[1754219156380,3.5,161.9,161.87,3.4]
[1754219156681,3.5,161.9,161.88,3.4]
[1754219156973,116.8,161.89,161.88,3.4]
[1754219157185,3.5,161.89,161.88,3.4]
[1754219157477,116.84,161.89,161.88,3.4]
[1754219158280,3.5,161.89,161.88,3.4]
[1754219158484,116.84,161.89,161.88,3.4]
[1754219158980,3.5,161.89,161.88,3.4]
[1754219159373,116.84,161.89,161.88,3.4]
[1754219160479,3.5,161.91,161.88,3.4]
[1754219160679,116.82,161.9,161.88,3.4]
[1754219162581,3.4,161.89,161.88,3.4]
[1754219163783,3.4,161.89,161.85,5.18119908]
[1754219163982,3.4,161.89,161.87,3.22]
[1754219164183,3.4,161.89,161.88,3.22]
[1754219165186,116.72,161.9,161.88,3.22]
[1754219165386,3.4,161.89,161.88,3.22]
[1754219165987,3.4,161.89,161.86,3.22]
[1754219167483,3.4,161.88,161.86,3.22]
[1754219167687,113.32,161.87,161.86,3.22]
[1754219168287,116.72,161.87,161.86,3.22]
[1754219177396,3.4,161.91,161.86,3.22]
[1754219177693,3.4,161.89,161.86,3.22]
[1754219178991,113.2,161.88,161.86,3.22]
[1754219179196,116.6,161.88,161.86,3.22]
[1754219179901,113.2,161.87,161.86,3.22]
[1754219182293,3.4,161.89,161.86,8.39815069]
[1754219182499,113.2,161.88,161.87,3.22]
[1754219182903,116.6,161.88,161.87,3.22]
[1754219183398,3.4,161.88,161.87,3.22]
[1754219183600,116.62,161.88,161.87,3.22]
[1754219184596,113.22,161.88,161.86,5.17815069]
[1754219184805,3.4,161.87,161.86,3.22]
[1754219191204,113.22,161.88,161.86,3.22]
[1754219191403,116.62,161.88,161.86,3.22]
[1754219192590,113.22,161.88,161.86,3.22]
[1754219192795,113.22,161.88,161.87,3.45]
[1754219194510,3.34,161.89,161.87,3.45]
[1754219194802,113.24,161.88,161.87,3.45]
[1754219195204,3.34,161.89,161.87,3.45]
[1754219195405,113.22,161.88,161.87,3.45]
[1754219195910,3.34,161.89,161.87,3.45]
[1754219196204,113.2,161.88,161.87,3.45]
[1754219200504,116.54,161.88,161.87,3.45]
[1754219200800,116.54,161.88,161.87,8.62815069]
[1754219201108,3.34,161.89,161.88,3.45]
[1754219230443,3.26,161.9,161.88,3.45]
[1754219231043,3.26,161.9,161.88,8.63140857]
[1754219231236,3.26,161.9,161.89,3.21]
[1754219232840,3.26,161.94,161.89,3.21]
[1754219233033,3.26,161.95,161.9,3.21]
[1754219233238,113.2,161.94,161.9,3.21]
[1754219233441,3.26,161.93,161.9,3.21]
[1754219233842,3.26,161.92,161.9,3.21]
[1754219234145,116.44,161.91,161.9,3.21]
[1754219236046,113.18,161.91,161.9,3.21]
[1754219238749,113.18,161.91,161.9,8.39140857]
[1754219239046,113.18,161.91,161.9,3.21]
[1754219240033,3.26,161.94,161.9,3.21]
[1754219240237,3.26,161.94,161.92,3.21]
[1754219240543,116.36,161.93,161.92,3.21]
[1754219242142,113.1,161.93,161.92,3.21]
[1754219242336,3.26,161.95,161.92,3.21]
[1754219242640,3.26,161.95,161.94,3.21]
[1754219244744,11.85653,161.96,161.94,3.21]
[1754219245144,8.59653,161.96,161.93,5.17000342]
[1754219245350,8.59653,161.96,161.95,3.21]
[1754219245543,11.85653,161.96,161.95,100.66787412]
[1754219246749,8.59653,161.96,161.95,100.66787412]
[1754219250954,114.48,161.99,161.96,3.21]
[1754219251154,117.74,161.99,161.96,3.21]
[1754219252253,114.48,161.99,161.96,3.21]
[1754219252448,117.68,161.99,161.96,3.21]
[1754219252657,222.44765438,162.02,161.95,97.45787412]
[1754219252957,3.2,162.0,161.96,3.36]
[1754219254057,3.2,162.0,161.95,97.45787412]
[1754219254259,3.2,162.0,161.96,3.36]
[1754219257557,3.2,162.0,161.97,3.36]
[1754219258158,3.2,162.0,161.98,3.36]
[1754219261062,3.2,162.0,161.97,3.36]
[1754219261961,114.26,161.99,161.96,3.36]
[1754219262156,117.46,161.99,161.96,3.36]
[1754219263057,3.2,161.98,161.96,3.36]
[1754219264958,114.26,161.99,161.96,3.36]
[1754219265155,3.2,161.97,161.96,3.36]
[1754219266461,3.2,161.98,161.96,3.36]
[1754219266654,222.44765438,162.02,161.97,3.36]
[1754219266956,114.18,162.01,161.97,3.36]
[1754219267157,3.2,162.0,161.97,3.36]
[1754219268262,3.2,162.0,161.96,3.36]
[1754219270860,3.2,161.99,161.96,3.36]
[1754219273565,114.18,162.01,161.96,3.36]
[1754219273866,3.2,162.0,161.96,3.36]
[1754219275271,114.18,162.01,161.96,3.36]
[1754219275570,3.2,161.99,161.96,3.36]
[1754219276377,3.2,162.0,161.96,3.36]
[1754219276679,114.18,162.01,161.96,3.36]
[1754219276883,3.2,161.99,161.96,3.36]
[1754219278178,117.38,162.01,161.96,3.36]
[1754219279282,114.18,162.01,161.96,3.36]
[1754219279580,3.2,162.0,161.96,3.36]
[1754219280476,3.2,162.0,161.97,3.36]
[1754219283286,3.5,161.99,161.97,3.36]
[1754219285185,3.5,162.0,161.97,3.36]
[1754219285384,3.5,162.0,161.97,8.53000342]
[1754219285585,3.5,162.0,161.98,3.19]
[1754219285789,3.5,162.01,161.98,3.19]
[1754219286782,113.82,162.02,161.98,3.19]
[1754219286783,3.5,162.0,161.98,3.19]
[1754219289382,3.5,162.0,161.98,8.36000342]
[1754219289584,3.5,162.0,161.99,3.19]
[1754219291286,3.5,162.04,161.99,3.19]
[1754219291487,3.5,162.01,161.99,3.19]
[1754219292290,3.5,162.04,161.99,3.19]
[1754219292486,3.5,162.02,162.0,3.19]
[1754219293682,117.16,162.03,162.0,3.19]
[1754219294087,3.5,162.02,162.0,3.19]
[1754219300995,113.66,162.03,161.99,5.16268717]
[1754219301193,117.16,162.03,162.01,8.35268717]
[1754219301494,3.5,162.03,162.02,3.19]
[1754219308904,3.5,162.05,162.02,3.19]
[1754219309699,113.5,162.06,162.01,5.16268717]
[1754219309903,3.5,162.05,162.02,3.19]
[1754219321413,3.5,162.05,162.03,3.35]
[1754219322215,3.51,162.12,162.04,3.35]
[1754219322411,3.51,162.12,162.05,5.16268717]
[1754219322614,3.51,162.12,162.04,3.35]
[1754219324822,3.51,162.1,162.04,3.35]
[1754219328520,113.08,162.1,162.04,3.35]
[1754219328727,3.51,162.09,162.04,3.35]
[1754219331418,5.28146815,162.13,162.04,3.35]
[1754219331624,3.51,162.11,162.03,3.35]
[1754219332125,3.51,162.1,162.04,3.35]
[1754219334227,3.51,162.1,162.04,8.51268717]
[1754219334429,3.51,162.1,162.05,3.35]
[1754219346827,3.39,162.09,162.05,3.35]
[1754219349332,3.39,162.09,162.05,5.16268717]
[1754219349632,3.39,162.09,162.06,3.41]
[1754219353033,112.78,162.1,162.06,3.41]
[1754219353236,112.78,162.11,162.06,3.41]
[1754219353436,3.39,162.1,162.06,3.41]
[1754219354438,3.39,162.1,162.05,3.41]
[1754219354631,3.39,162.1,162.05,5.16268717]
[1754219354835,3.39,162.1,162.06,3.41]
[1754219358041,3.39,162.1,162.07,3.41]
[1754219366337,3.39,162.09,162.07,3.41]
[1754219367841,3.39,162.12,162.07,3.41]
[1754219368143,3.39,162.09,162.07,3.41]
[1754219368331,112.8,162.1,162.07,3.41]
[1754219368532,112.8,162.1,162.07,8.56601373]
[1754219368734,116.19,162.1,162.08,3.41]
[1754219368936,116.19,162.1,162.07,5.15601373]
[1754219369135,3.39,162.09,162.07,8.56601373]
[1754219369331,3.39,162.09,162.08,3.41]
[1754219370142,112.8,162.1,162.08,3.41]
[1754219370441,3.39,162.09,162.08,3.41]
[1754219374247,112.8,162.1,162.08,3.41]
[1754219374446,116.27,162.1,162.08,3.41]
[1754219374847,3.47,162.09,162.08,3.41]
[1754219376850,3.47,162.1,162.08,3.41]
[1754219378142,3.47,162.1,162.07,3.31]
[1754219379039,112.68,162.11,162.07,3.31]
[1754219379040,3.47,162.09,162.07,3.31]
[1754219379248,3.47,162.1,162.07,3.31]
[1754219379447,3.47,162.1,162.06,3.31]
[1754219379647,3.47,162.1,162.06,8.46601373]
[1754219379848,3.47,162.1,162.07,3.31]
[1754219381447,3.47,162.09,162.07,3.31]
[1754219381647,116.25,162.09,162.07,3.31]
[1754219382258,3.47,162.09,162.07,3.31]
[1754219382450,116.23,162.09,162.07,3.31]
[1754219382756,3.47,162.09,162.07,3.31]
[1754219382955,116.23,162.09,162.07,3.31]
[1754219383455,112.76,162.11,162.07,3.31]
[1754219383648,116.23,162.11,162.07,3.31]
[1754219383845,3.47,162.1,162.07,3.31]
[1754219385255,3.47,162.1,162.07,8.46601373]
[1754219385453,3.47,162.1,162.08,3.31]
[1754219387255,3.47,162.1,162.09,3.31]
[1754219403473,116.13,162.1,162.09,3.31]
[1754219406077,115.88,162.1,162.09,3.31]
[1754219407178,3.22,162.1,162.09,3.31]
[1754219407379,115.88,162.1,162.09,3.31]
[1754219419985,3.22,162.09,162.08,3.16]
[1754219421584,115.88,162.1,162.08,3.16]
[1754219423989,3.22,162.1,162.08,3.16]
[1754219425685,112.66,162.11,162.07,5.15601373]
[1754219425886,115.88,162.11,162.08,3.16]
[1754219426292,3.22,162.1,162.08,3.16]
[1754219429086,112.66,162.11,162.08,3.16]
[1754219429486,115.88,162.11,162.08,3.16]
[1754219429681,115.88,162.11,162.08,8.31601373]
[1754219429881,115.88,162.11,162.08,5.15601373]
[1754219430087,115.88,162.11,162.09,3.16]
[1754219430594,115.88,162.11,162.09,8.31601373]